bitfinex/quotes_BTCUSD_20241223
["timestamp","ask_amount","ask_price","bid_price","bid_amount"]
[1734979104665,0.0335681,93356.0,93347.0,0.00061938]
[1734979105073,0.214245,93351.0,93347.0,0.00061938]
[1734979105277,0.214235,93355.0,93347.0,0.00061938]
[1734979108566,0.003,93357.0,93347.0,0.00061938]
[1734979109005,0.214246,93351.0,93347.0,0.00061938]
[1734979109359,0.0431481,93350.0,93347.0,0.00061938]
[1734979109578,0.214246,93351.0,93347.0,0.00061938]
[1734979109964,0.214235,93355.0,93347.0,0.00061938]
[1734979110165,0.002,93357.0,93347.0,0.00061938]
[1734979110602,0.002,93357.0,93347.0,0.00261938]
[1734979110748,0.001,93357.0,93347.0,0.00061938]
[1734979112865,0.214244,93352.0,93347.0,0.00061938]
[1734979113156,0.31823032,93352.0,93347.0,0.00061938]
[1734979113360,0.53247432,93352.0,93347.0,0.00061938]
[1734979114177,0.001,93357.0,93347.0,0.00061938]
[1734979114378,0.10498632,93357.0,93347.0,0.00061938]
[1734979114560,0.214233,93356.0,93347.0,0.00061938]
[1734979115203,0.214248,93350.0,93347.0,0.00061938]
[1734979116841,0.214245,93351.0,93347.0,0.00061938]
[1734979118247,0.42849,93351.0,93347.0,0.00061938]
[1734979118655,0.15,93348.0,93347.0,0.00061938]
[1734979118917,0.37698632,93348.0,93347.0,0.00061938]
[1734979119101,0.50118632,93348.0,93347.0,0.00061938]
[1734979119334,0.50118632,93348.0,93347.0,3.8e-07]
[1734979121707,0.50718632,93348.0,93347.0,3.8e-07]
[1734979122073,0.40718632,93348.0,93347.0,3.8e-07]
[1734979123488,0.41018632,93348.0,93347.0,3.8e-07]
[1734979124092,0.36418632,93348.0,93347.0,3.8e-07]
[1734979124904,0.26298632,93348.0,93347.0,3.8e-07]
[1734979125106,0.009,93348.0,93347.0,3.8e-07]
[1734979125728,0.11298632,93348.0,93347.0,3.8e-07]
[1734979126499,0.009,93348.0,93347.0,3.8e-07]
[1734979127524,0.214235,93355.0,93326.0,0.000171]
[1734979127795,0.10398632,93354.0,93326.0,0.000171]
[1734979128576,0.214254,93348.0,93328.0,0.428594]
[1734979129436,0.214254,93348.0,93328.0,0.214297]
[1734979129633,0.428508,93347.0,93328.0,0.214297]
[1734979130257,0.214263,93343.0,93326.0,0.000171]
[1734979130456,0.214263,93343.0,93327.0,0.2143]
[1734979130686,0.214281,93336.0,93326.0,0.000171]
[1734979130863,0.0335367,93347.0,93326.0,0.000171]
[1734979131060,0.214286,93333.0,93326.0,0.000171]
[1734979131239,0.214287,93333.0,93326.0,0.000171]
[1734979131630,0.214258,93345.0,93326.0,0.000171]
[1734979131631,0.428589,93330.0,93326.0,0.000171]
[1734979131832,0.214294,93330.0,93326.0,0.000171]
[1734979132445,0.214294,93330.0,93321.0,0.02173052]
[1734979132676,0.214294,93330.0,93321.0,0.00015989]
[1734979133461,0.15,93334.0,93321.0,0.00015989]
[1734979133636,0.15,93332.0,93321.0,0.00015989]
[1734979136250,0.2507196,93331.0,93321.0,0.00015989]
[1734979137481,0.214291,93331.0,93321.0,0.00024539]
[1734979137684,0.15,93332.0,93321.0,0.00024539]
[1734979138310,0.10398632,93344.0,93321.0,0.00024539]
[1734979138311,0.214259,93345.0,93321.0,0.00131692]
[1734979138496,0.15,93344.0,93321.0,0.00024539]
[1734979138668,0.15081085,93343.0,93321.0,0.00024539]
[1734979138868,0.214288,93333.0,93321.0,0.00024539]
[1734979139069,0.214296,93329.0,93326.0,0.001]
[1734979139271,0.428592,93329.0,93326.0,0.001]
[1734979139485,0.428592,93329.0,93321.0,0.00024539]
[1734979140301,0.214305,93325.0,93321.0,0.00024539]
[1734979140694,0.42861,93325.0,93321.0,0.00024539]
[1734979141110,0.214309,93323.0,93321.0,0.00024539]
[1734979143947,0.25398632,93324.0,93321.0,0.00024539]
[1734979144321,0.214309,93323.0,93321.0,0.00024539]
[1734979145366,0.15,93324.0,93321.0,0.00024539]
[1734979146003,0.15,93329.0,93321.0,0.00024539]
[1734979147527,0.003,93344.0,93322.0,0.0458]
[1734979147733,0.003,93344.0,93324.0,0.214307]
[1734979147933,0.003,93344.0,93323.0,0.01331306]
[1734979147934,0.003,93344.0,93335.0,0.214279]
[1734979149109,0.000171,93351.0,93335.0,0.214279]
[1734979150181,0.000171,93351.0,93342.0,0.214263]
[1734979150381,0.000171,93351.0,93325.0,0.10398632]
[1734979150532,0.000171,93351.0,93339.0,0.214271]
[1734979150748,0.000171,93351.0,93340.0,0.00107123]
[1734979150949,0.000171,93351.0,93326.0,0.06991628]
[1734979150950,0.000171,93351.0,93341.0,0.0785]
[1734979151155,0.000171,93351.0,93343.0,0.214263]
[1734979151332,0.000171,93351.0,93342.0,0.0488]
[1734979151519,0.000171,93351.0,93343.0,0.214263]
[1734979151937,0.000171,93351.0,93348.0,0.00015748]
[1734979154623,0.000171,93351.0,93349.0,0.214249]
[1734979154829,0.000171,93351.0,93350.0,0.1050574]
[1734979155240,0.000171,93351.0,93350.0,0.4842574]
[1734979155466,0.09597337,93384.0,93376.0,0.214185]
[1734979155884,0.09597337,93384.0,93375.0,0.214188]
[1734979156291,0.09597337,93384.0,93365.0,0.0009955]
[1734979156292,0.09597337,93384.0,93373.0,0.214194]
[1734979156680,0.00033086,93388.0,93373.0,0.214194]
[1734979157086,0.00033086,93388.0,93373.0,0.428388]
[1734979157317,0.00033086,93388.0,93375.0,0.001]
[1734979157752,0.00033086,93388.0,93376.0,0.214187]
[1734979158321,0.00033086,93388.0,93380.0,0.214177]
[1734979158717,0.00033086,93388.0,93384.0,0.214168]
[1734979159497,0.00033086,93388.0,93384.0,0.428336]
[1734979159698,0.00033086,93388.0,93385.0,0.00107073]
[1734979159966,0.00033086,93388.0,93386.0,0.31815032]
[1734979160170,0.00033086,93388.0,93380.0,0.214176]
[1734979160553,0.00033086,93388.0,93384.0,0.214168]
[1734979161101,0.00033086,93388.0,93376.0,0.214186]
[1734979161308,0.00033086,93388.0,93375.0,0.001]
[1734979161507,0.23560989,93387.0,93375.0,0.001]
[1734979162744,0.44977289,93387.0,93375.0,0.001]
[1734979163161,0.214167,93385.0,93375.0,0.001]
[1734979163349,0.214171,93383.0,93375.0,0.001]
[1734979163932,0.214171,93383.0,93367.0,0.214207]
[1734979165061,0.25398632,93382.0,93365.0,0.0009955]
[1734979165283,0.214198,93372.0,93365.0,0.0009955]
[1734979165465,0.21419,93375.0,93365.0,0.0009955]
[1734979165671,0.15,93382.0,93360.0,0.00107107]
[1734979165869,0.15,93382.0,93370.0,0.214199]
[1734979166092,0.15,93386.0,93370.0,0.214199]
[1734979166271,0.15,93384.0,93360.0,0.10398632]
[1734979166612,0.15,93378.0,93361.0,0.214221]
[1734979167037,0.15,93378.0,93373.0,0.001]
[1734979167411,0.15,93378.0,93351.0,0.214244]
[1734979167412,0.214188,93376.0,93351.0,0.214244]
[1734979167632,0.214188,93376.0,93359.0,0.0009937]
[1734979167815,0.21419,93375.0,93359.0,0.0009937]
[1734979169115,0.15,93383.0,93360.0,0.02259361]
[1734979169454,0.15,93385.0,93368.0,0.214205]
[1734979169775,0.002,93384.0,93368.0,0.214205]
[1734979170207,0.152,93384.0,93365.0,0.214212]
[1734979170527,0.152,93384.0,93365.0,0.428424]
[1734979170727,0.15,93384.0,93365.0,0.428424]
[1734979171065,0.002,93383.0,93365.0,0.428424]
[1734979171708,0.002,93383.0,93359.0,0.0009937]
[1734979171709,0.214195,93373.0,93359.0,0.0009937]
[1734979171911,0.15,93381.0,93359.0,0.0009937]
[1734979172115,0.15,93379.0,93360.0,0.00107104]
[1734979172324,0.15,93379.0,93359.0,0.0009937]
[1734979172536,0.15,93379.0,93366.0,0.214208]
[1734979172901,0.15,93379.0,93376.0,0.002]
[1734979173541,0.214171,93383.0,93366.0,0.214208]
[1734979174084,0.001,93379.0,93359.0,0.0009937]
[1734979174297,0.4284,93371.0,93359.0,0.0019937]
[1734979174709,0.214203,93369.0,93359.0,0.001]
[1734979174915,0.214203,93369.0,93350.0,0.2152274]
[1734979175176,0.0504003,93368.0,93350.0,0.2152274]
[1734979175379,0.0756,93370.0,93350.0,0.0009814]
[1734979175380,0.214208,93367.0,93350.0,0.0009814]
[1734979175581,0.214203,93369.0,93351.0,0.214245]
[1734979175791,0.0756,93370.0,93351.0,0.214245]
[1734979175994,0.214203,93369.0,93351.0,0.214245]
[1734979176195,0.0756,93370.0,93350.0,0.0009814]
[1734979176322,0.11154632,93369.0,93350.0,0.0009814]
[1734979176528,0.15,93367.0,93348.0,0.00015748]
[1734979176989,0.214224,93361.0,93359.0,0.001]
[1734979177579,0.214224,93361.0,93350.0,0.002]
[1734979179212,0.214224,93361.0,93348.0,0.00015748]
[1734979179809,0.495849,93349.0,93348.0,0.00015748]
[1734979180011,0.62283532,93349.0,93348.0,0.00015748]
[1734979180948,0.59983532,93349.0,93348.0,0.00015748]
[1734979181363,0.55333532,93349.0,93348.0,0.00015748]
[1734979181801,0.55533532,93349.0,93348.0,0.00015748]
[1734979183020,0.451349,93349.0,93348.0,0.00015748]
[1734979183931,0.005,93349.0,93348.0,0.00015748]
[1734979184657,0.003,93349.0,93348.0,0.00015748]
[1734979185024,0.005,93349.0,93348.0,0.00015748]
[1734979185226,0.002,93349.0,93348.0,0.00015748]
[1734979185440,0.214245,93352.0,93348.0,0.00015748]
[1734979185745,0.10398632,93352.0,93348.0,0.00015748]
[1734979185944,0.214249,93349.0,93348.0,0.00015748]
[1734979186120,0.46823532,93349.0,93348.0,0.00015748]
[1734979186803,0.47123532,93349.0,93348.0,0.00015748]
[1734979186941,0.47023532,93349.0,93348.0,0.00015748]
[1734979187158,0.47223532,93349.0,93348.0,0.00015748]
[1734979187568,0.55163532,93349.0,93348.0,0.00015748]
[1734979190299,0.0834,93349.0,93348.0,0.00015748]
[1734979190441,0.006,93349.0,93348.0,0.00015748]
[1734979190648,0.156,93349.0,93348.0,0.00015748]
[1734979191231,0.154,93349.0,93348.0,0.00015748]
[1734979191428,0.15,93349.0,93348.0,0.00015748]
[1734979191630,0.152,93349.0,93348.0,0.00015748]
[1734979192941,0.15,93349.0,93348.0,0.00015748]
[1734979193350,0.15,93349.0,93348.0,0.00024298]
[1734979193553,0.153,93349.0,93348.0,0.00024298]
[1734979193848,0.15,93349.0,93348.0,0.00024298]
[1734979194043,0.154,93349.0,93348.0,0.00024298]
[1734979194442,0.002,93349.0,93348.0,0.00024298]
[1734979194852,0.002,93349.0,93348.0,0.1042293]
[1734979195087,0.003,93349.0,93348.0,0.1053004]
[1734979195205,0.003,93349.0,93348.0,0.3195524]
[1734979195412,0.003,93349.0,93348.0,0.3184813]
[1734979195822,0.003,93349.0,93348.0,0.3985813]
[1734979196497,0.001,93349.0,93348.0,0.3985813]
[1734979197511,0.000171,93355.0,93354.0,0.214238]
[1734979197715,0.000171,93355.0,93354.0,0.31822432]
[1734979199795,0.001171,93355.0,93354.0,0.31822432]
[1734979200390,0.001171,93355.0,93354.0,0.32122432]
[1734979200391,0.000171,93355.0,93354.0,0.32122432]
[1734979200591,0.001171,93355.0,93354.0,0.003]
[1734979200799,0.001171,93355.0,93354.0,0.10398632]
[1734979201014,0.001171,93355.0,93354.0,0.20505723]
[1734979201221,0.001171,93355.0,93354.0,0.27945723]
[1734979201421,0.001171,93355.0,93354.0,0.35688632]
[1734979201422,0.000171,93355.0,93354.0,0.35688632]
[1734979201611,0.000171,93355.0,93354.0,0.45688632]
[1734979201777,0.001171,93355.0,93354.0,0.56087264]
[1734979202149,0.001171,93355.0,93354.0,0.55587264]
[1734979202975,0.000171,93379.0,93366.0,0.1]
[1734979203202,0.00033083,93379.0,93378.0,0.214183]
[1734979203408,0.00033083,93379.0,93378.0,0.36100632]
[1734979204437,0.00033083,93379.0,93378.0,0.36900632]
[1734979204635,0.00133083,93379.0,93378.0,0.36900632]
[1734979204847,0.00133083,93379.0,93378.0,0.36100632]
[1734979206074,0.00233083,93379.0,93378.0,0.37000632]
[1734979206414,0.00033083,93379.0,93378.0,0.36100632]
[1734979206892,0.00133083,93379.0,93378.0,0.37400632]
[1734979207137,0.00133083,93379.0,93378.0,0.32216932]
[1734979207330,0.00233083,93379.0,93378.0,0.32716932]
[1734979207468,0.00133083,93379.0,93378.0,0.32216932]
[1734979207991,0.00233083,93379.0,93378.0,0.32716932]
[1734979208193,0.00233083,93379.0,93378.0,0.33116932]
[1734979209135,0.00033083,93379.0,93378.0,0.32216932]
[1734979209472,0.00033083,93379.0,93378.0,0.38380495]
[1734979209473,0.00133083,93379.0,93378.0,0.38380495]
[1734979209685,0.00133083,93379.0,93378.0,0.37980495]
[1734979209871,0.00133083,93379.0,93378.0,0.38380495]
[1734979210012,0.00133083,93379.0,93378.0,0.37580495]
[1734979210217,0.00033083,93379.0,93378.0,0.37580495]
[1734979210442,0.00133083,93379.0,93378.0,0.38380495]
[1734979210641,0.00133083,93379.0,93378.0,0.37180495]
[1734979210841,0.00133083,93379.0,93378.0,0.37580495]
[1734979211082,0.00233083,93379.0,93378.0,0.43330495]
[1734979211426,0.00233083,93379.0,93378.0,0.37966932]
[1734979211601,0.00233083,93379.0,93378.0,0.33116932]
[1734979214575,0.00233083,93379.0,93378.0,0.43116932]
[1734979214790,0.00233083,93379.0,93378.0,0.76306932]
[1734979215779,0.000171,93388.0,93387.0,0.612962]
[1734979215981,0.000171,93388.0,93387.0,0.89776112]
[1734979216185,0.0001708,93414.0,93413.0,0.214102]
[1734979216397,0.00070425,93414.0,93413.0,0.31808832]
[1734979217367,0.00070425,93414.0,93413.0,0.46488832]
[1734979217568,0.00070425,93414.0,93413.0,0.57252363]
[1734979217744,0.00170425,93414.0,93413.0,0.84169729]
[1734979217951,0.0001712,93423.0,93422.0,0.314082]
[1734979218147,0.00033117,93423.0,93422.0,0.41806832]
[1734979219758,0.00033117,93423.0,93422.0,0.61696832]
[1734979219975,0.00133117,93423.0,93422.0,0.90163932]
[1734979220175,0.00133117,93423.0,93422.0,1.0278435]
[1734979220497,0.00133117,93423.0,93422.0,1.0308435]
[1734979220824,0.00033117,93423.0,93422.0,1.0218435]
[1734979221020,0.00133117,93423.0,93422.0,1.0258435]
[1734979221161,0.00133117,93423.0,93422.0,0.50456572]
[1734979221371,0.00133117,93423.0,93422.0,0.45826572]
[1734979222007,0.00087187,93423.0,93422.0,0.45826572]
[1734979222228,0.0832,93444.0,93429.0,0.214064]
[1734979222422,0.08325329,93444.0,93429.0,0.214064]
[1734979222624,0.08325329,93444.0,93422.0,0.11151272]
[1734979222826,0.08325329,93444.0,93425.0,0.0009943]
[1734979223025,0.08325329,93444.0,93425.0,0.2150693]
[1734979223278,0.08325329,93444.0,93426.0,0.10505656]
[1734979223897,0.08825329,93444.0,93426.0,0.10505656]
[1734979224049,0.08825329,93444.0,93427.0,0.04295466]
[1734979224213,0.08825329,93444.0,93428.0,0.10398632]
[1734979224416,0.08825329,93444.0,93429.0,0.214066]
[1734979224800,0.08825329,93444.0,93429.0,0.31805232]
[1734979225354,0.08825329,93444.0,93429.0,0.10398632]
[1734979225572,0.08325329,93444.0,93425.0,0.0019913]
[1734979225775,0.214044,93439.0,93425.0,0.0019913]
[1734979225986,0.214044,93439.0,93429.0,0.001]
[1734979226314,0.214044,93439.0,93425.0,0.0009913]
[1734979226866,0.08325329,93444.0,93425.0,0.0009913]
[1734979227163,0.08325329,93444.0,93426.0,0.00107025]
[1734979227390,0.08325329,93444.0,93429.0,0.001]
[1734979227982,0.08325329,93444.0,93429.0,0.215064]
[1734979228119,0.08325329,93444.0,93429.0,0.001]
[1734979228924,0.08333879,93444.0,93425.0,0.33114435]
[1734979229121,0.08333879,93444.0,93429.0,0.001]
[1734979229347,0.29737079,93444.0,93429.0,0.001]
[1734979229759,0.08333879,93444.0,93429.0,0.001]
[1734979230205,0.08333879,93444.0,93430.0,0.00107019]
[1734979230816,0.0585374,93448.0,93430.0,0.00107019]
[1734979231020,0.15,93447.0,93431.0,0.03211188]
[1734979233083,0.214027,93446.0,93430.0,5.329e-05]
[1734979233598,0.15,93451.0,93430.0,5.329e-05]
[1734979233799,0.2274,93456.0,93430.0,0.1051098]
[1734979234007,0.0774,93456.0,93430.0,0.1051098]
[1734979234220,0.21401,93454.0,93430.0,0.10403961]
[1734979234435,0.15,93453.0,93430.0,0.10403961]
[1734979235514,0.15,93453.0,93433.0,0.214055]
[1734979235737,0.15,93453.0,93433.0,0.27222868]
[1734979235944,0.0774,93456.0,93434.0,0.10505646]
[1734979236129,0.0774,93456.0,93441.0,0.214038]
[1734979237494,0.15,93464.0,93442.0,0.00107006]
[1734979237783,0.213994,93461.0,93439.0,0.214042]
[1734979237967,0.15,93460.0,93440.0,0.0590254]
[1734979238193,0.10350293,93460.0,93435.0,0.214052]
[1734979238397,0.213997,93459.0,93436.0,0.10398632]
[1734979238601,0.002,93449.0,93436.0,0.10398632]
[1734979238786,0.214003,93457.0,93436.0,0.10505638]
[1734979238973,0.214003,93457.0,93436.0,0.10498382]
[1734979239208,0.213997,93459.0,93440.0,0.002]
[1734979239414,0.214008,93455.0,93437.0,0.05331461]
[1734979239615,0.214008,93455.0,93437.0,0.15730093]
[1734979240336,0.214,93458.0,93437.0,0.15730093]
[1734979241549,0.002,93457.0,93437.0,0.10398632]
[1734979241754,0.214,93458.0,93437.0,0.10398632]
[1734979242146,0.216,93458.0,93437.0,0.10398632]
[1734979242356,0.2160854,93458.0,93437.0,0.10398632]
[1734979242765,0.001,93457.0,93437.0,0.10398632]
[1734979242971,0.001,93457.0,93436.0,0.0009975]
[1734979242972,0.214004,93456.0,93436.0,0.0009975]
[1734979243211,0.214027,93446.0,93436.0,0.0009975]
[1734979243339,0.214027,93446.0,93431.0,0.0001708]
[1734979245375,0.214027,93446.0,93431.0,0.0031708]
[1734979246494,0.214036,93443.0,93431.0,0.0031708]
[1734979247100,0.214027,93446.0,93431.0,0.0031708]
[1734979247618,0.214027,93446.0,93431.0,0.0001708]
[1734979248154,0.214027,93446.0,93431.0,0.001241]
[1734979248384,0.214027,93446.0,93431.0,0.0001708]
[1734979249426,0.15,93454.0,93431.0,0.0001708]
[1734979249631,0.214052,93436.0,93431.0,0.0001708]
[1734979250986,0.214052,93436.0,93431.0,0.0041708]
[1734979251392,0.214046,93438.0,93431.0,0.0041708]
[1734979252180,0.214046,93438.0,93431.0,0.0001708]
[1734979252373,0.214046,93438.0,93431.0,0.0041708]
[1734979252579,0.214047,93437.0,93431.0,0.0041708]
[1734979252799,0.214047,93437.0,93431.0,0.0051708]
[1734979253644,0.214047,93437.0,93431.0,0.0011708]
[1734979253975,0.214047,93437.0,93431.0,0.0041708]
[1734979254194,0.15,93433.0,93431.0,0.0031708]
[1734979254399,0.46804532,93432.0,93431.0,0.0001708]
[1734979254811,0.46804532,93432.0,93431.0,0.0040108]
[1734979255007,0.46804532,93432.0,93431.0,1.08e-05]
[1734979255213,0.46505169,93432.0,93431.0,1.08e-05]
[1734979255451,0.46505169,93432.0,93431.0,0.0010108]
[1734979255865,0.46505169,93432.0,93431.0,1.08e-05]
[1734979257095,0.36106537,93432.0,93431.0,1.08e-05]
[1734979257726,0.46505169,93432.0,93431.0,1.08e-05]
[1734979258259,0.47105169,93432.0,93431.0,0.0010108]
[1734979258408,0.47105169,93432.0,93431.0,1.08e-05]
[1734979258604,0.47605169,93432.0,93431.0,1.08e-05]
[1734979258792,0.47005169,93432.0,93431.0,1.08e-05]
[1734979259215,0.47005169,93432.0,93431.0,0.0010108]
[1734979259216,0.37206537,93432.0,93431.0,0.0010108]
[1734979260375,0.47605169,93432.0,93431.0,0.0010108]
[1734979260578,0.46505169,93432.0,93431.0,1.08e-05]
[1734979260996,0.47105169,93432.0,93431.0,0.0010108]
[1734979261106,0.47105169,93432.0,93431.0,1.08e-05]
[1734979261469,0.47705169,93432.0,93431.0,0.0010108]
[1734979261700,0.012,93432.0,93431.0,0.0010108]
[1734979261897,0.15,93434.0,93431.0,1.08e-05]
[1734979262095,0.003,93432.0,93431.0,1.08e-05]
[1734979262439,0.003,93432.0,93399.0,0.0756]
[1734979262440,0.15,93431.0,93399.0,0.0756]
[1734979262635,0.2316,93424.0,93412.0,0.00015997]
[1734979262863,0.214102,93413.0,93412.0,0.00015997]
[1734979264086,0.46808832,93413.0,93412.0,0.00015997]
[1734979264462,0.46808832,93413.0,93412.0,0.00515997]
[1734979264866,0.46808832,93413.0,93412.0,0.00615997]
[1734979265284,0.46808832,93413.0,93412.0,0.00115997]
[1734979265490,0.46808832,93413.0,93412.0,0.00015997]
[1734979265748,0.46808832,93413.0,93412.0,0.00115997]
[1734979265904,0.57008832,93413.0,93412.0,0.00115997]
[1734979266865,0.57008832,93413.0,93412.0,0.00015997]
[1734979267161,0.57608832,93413.0,93412.0,0.00115997]
[1734979267597,0.57608832,93413.0,93412.0,0.00015997]
[1734979267799,0.58208832,93413.0,93412.0,0.00115997]
[1734979267972,0.57608832,93413.0,93412.0,0.00015997]
[1734979268334,0.57608832,93413.0,93412.0,0.00115997]
[1734979268335,0.58208832,93413.0,93412.0,0.00115997]
[1734979276227,0.48008832,93413.0,93412.0,0.00115997]
[1734979277442,0.214117,93407.0,93390.0,0.05383097]
[1734979279148,0.214117,93407.0,93391.0,0.214153]
[1734979279404,0.00615976,93413.0,93403.0,0.214124]
[1734979279578,0.00015976,93413.0,93408.0,0.214114]
[1734979279794,0.00015976,93413.0,93392.0,0.15230788]
[1734979279795,0.003,93407.0,93406.0,0.214119]
[1734979279962,0.003,93407.0,93406.0,0.31810532]
[1734979280155,0.001,93407.0,93406.0,0.31810532]
[1734979280362,0.00015976,93413.0,93412.0,0.214105]
[1734979280604,0.00115976,93413.0,93412.0,0.44199132]
[1734979280778,0.00115976,93413.0,93412.0,0.23497558]
[1734979281026,0.00015976,93413.0,93412.0,0.23497558]
[1734979282726,0.00115976,93413.0,93412.0,0.24397558]
[1734979283414,0.00015976,93413.0,93412.0,0.23497558]
[1734979283555,0.00015976,93413.0,93412.0,0.23897558]
[1734979283767,0.00115976,93413.0,93412.0,0.24697558]
[1734979284104,0.00115976,93413.0,93412.0,0.23897558]
[1734979284333,0.00215976,93413.0,93412.0,0.24797558]
[1734979289047,0.00015976,93413.0,93412.0,0.23897558]
[1734979289273,0.00115976,93413.0,93412.0,0.24697558]
[1734979289477,0.00115976,93413.0,93412.0,0.23897558]
[1734979289682,0.00124526,93413.0,93412.0,0.19167558]
[1734979289902,0.00224526,93413.0,93412.0,0.09268926]
[1734979290118,0.00024526,93413.0,93412.0,0.00708926]
[1734979290536,0.00124526,93413.0,93412.0,0.012]
[1734979290703,0.00024526,93413.0,93412.0,0.003]
[1734979291094,0.00024526,93413.0,93400.0,0.09592238]
[1734979291318,0.00124526,93413.0,93400.0,0.09592238]
[1734979291530,0.00124526,93413.0,93401.0,0.00816534]
[1734979291733,0.00124526,93413.0,93401.0,0.00709479]
[1734979292115,0.03147989,93413.0,93412.0,0.007]
[1734979292320,0.00224526,93413.0,93394.0,0.42829]
[1734979292514,0.00224526,93413.0,93401.0,0.003]
[1734979292717,0.00124526,93413.0,93401.0,0.003]
[1734979292943,0.00024526,93413.0,93402.0,0.00713776]
[1734979293318,0.00024526,93413.0,93400.0,0.214132]
[1734979293542,0.00024526,93413.0,93396.0,0.31812732]
[1734979293715,0.00024526,93413.0,93401.0,0.00714174]
[1734979293923,0.00024526,93413.0,93396.0,0.31812732]
[1734979293924,0.00124526,93413.0,93396.0,0.31812732]
[1734979294440,0.00024526,93413.0,93397.0,0.00715769]
[1734979294652,0.10423158,93413.0,93397.0,0.00715769]
[1734979294876,0.214122,93405.0,93390.0,0.000171]
[1734979295289,0.214122,93405.0,93391.0,0.00718795]
[1734979295490,0.214107,93411.0,93391.0,0.00718795]
[1734979295789,0.00024526,93413.0,93400.0,0.214131]
[1734979295992,0.00024526,93413.0,93402.0,0.214128]
[1734979296335,0.00024526,93413.0,93401.0,0.0071753]
[1734979296539,0.00024526,93413.0,93403.0,0.00716733]
[1734979296740,0.00024526,93413.0,93402.0,0.00717131]
[1734979296986,0.00124526,93413.0,93404.0,0.00716334]
[1734979297184,0.00124526,93413.0,93403.0,0.00716733]
[1734979297356,0.00024526,93413.0,93405.0,0.00715935]
[1734979297563,0.00024526,93413.0,93404.0,0.00716334]
[1734979297782,0.00024526,93413.0,93406.0,0.00715537]
[1734979297985,0.00024526,93413.0,93405.0,0.00715935]
[1734979298206,0.00024526,93413.0,93407.0,0.00715138]
[1734979298396,0.03667849,93413.0,93406.0,0.00715537]
[1734979298578,0.214115,93408.0,93387.0,0.0753]
[1734979298781,0.214105,93412.0,93387.0,0.0753]
[1734979299001,0.214115,93408.0,93406.0,0.003]
[1734979299167,0.214115,93408.0,93391.0,0.0071932]
[1734979299371,0.214115,93408.0,93387.0,0.0753]
[1734979299620,0.214115,93408.0,93392.0,0.00718974]
[1734979299817,0.214115,93408.0,93387.0,0.0753]
[1734979300026,0.295524,93404.0,93391.0,0.00719372]
[1734979300446,0.0814,93404.0,93391.0,0.00719372]
[1734979300819,0.001,93408.0,93392.0,0.10398632]
[1734979300999,0.002,93412.0,93400.0,0.214132]
[1734979301198,0.001,93404.0,93402.0,0.214128]
[1734979301640,0.001,93404.0,93403.0,0.00107048]
[1734979301840,0.001,93404.0,93403.0,0.1050568]
[1734979302099,0.001,93404.0,93403.0,0.10398632]
[1734979302722,0.002,93412.0,93411.0,0.214107]
[1734979302937,0.00024526,93413.0,93411.0,0.214107]
[1734979303095,0.00024526,93413.0,93412.0,0.10505663]
[1734979303293,0.00024526,93413.0,93412.0,0.10398632]
[1734979304084,0.00024526,93413.0,93412.0,0.1050566]
[1734979304774,0.00024526,93413.0,93412.0,0.1060566]
[1734979304952,0.00024526,93413.0,93412.0,0.11322408]
[1734979305146,0.00124526,93413.0,93412.0,0.12222408]
[1734979305479,0.00024526,93413.0,93412.0,0.11322408]
[1734979305885,0.00024526,93413.0,93412.0,0.11222408]
[1734979306096,0.00124526,93413.0,93412.0,0.12422408]
[1734979306350,0.00124526,93413.0,93412.0,0.11522408]
[1734979306558,0.00124526,93413.0,93412.0,0.11222408]
[1734979306757,0.00224526,93413.0,93412.0,0.12122408]
[1734979306951,0.00224526,93413.0,93412.0,0.12522408]
[1734979307356,0.00224526,93413.0,93412.0,0.12122408]
[1734979307717,0.00224526,93413.0,93412.0,0.12522408]
[1734979308329,0.00124526,93413.0,93412.0,0.12522408]
[1734979308532,0.00024526,93413.0,93412.0,0.1151538]
[1734979308731,0.00124526,93413.0,93412.0,0.02016748]
[1734979308933,0.00124526,93413.0,93412.0,0.01116748]
[1734979309366,0.00224526,93413.0,93412.0,0.02016748]
[1734979309567,0.00224526,93413.0,93412.0,0.01616748]
[1734979309800,0.00024526,93413.0,93412.0,0.00716748]
[1734979309990,0.00124526,93413.0,93412.0,0.02016748]
[1734979310327,0.00124526,93413.0,93412.0,0.01112023]
[1734979310462,0.00124526,93413.0,93412.0,0.00712023]
[1734979310667,0.00124526,93413.0,93412.0,0.002]
[1734979311486,0.00124526,93413.0,93412.0,0.006]
[1734979311842,0.00024526,93413.0,93403.0,0.214125]
[1734979312251,0.00024526,93413.0,93412.0,0.004]
[1734979312851,0.00024526,93413.0,93412.0,0.005]
[1734979313053,0.00024526,93413.0,93412.0,0.001]
[1734979313819,0.00024526,93413.0,93412.0,0.1121039]
[1734979314175,0.00024526,93413.0,93412.0,0.00811758]
[1734979314506,0.00024526,93413.0,93412.0,0.00918799]
[1734979314950,0.00024526,93413.0,93412.0,0.01318799]
[1734979315174,0.00024526,93413.0,93412.0,0.01211758]
[1734979315375,0.00024526,93413.0,93412.0,0.11717429]
[1734979317476,0.00024526,93413.0,93412.0,0.04317429]
[1734979319542,0.00124526,93413.0,93412.0,0.05617429]
[1734979321335,0.00124526,93413.0,93412.0,0.15209667]
[1734979321715,0.00124526,93413.0,93412.0,0.22759667]
[1734979321922,0.00124526,93413.0,93412.0,0.22652628]
[1734979322367,0.00124526,93413.0,93412.0,0.54750015]
[1734979322563,2.6e-07,93413.0,93412.0,0.75148647]
[1734979322996,2.6e-07,93413.0,93412.0,0.78490363]
[1734979323202,8.55e-05,93432.0,93431.0,0.412361]
[1734979323404,8.55e-05,93432.0,93431.0,0.51634732]
[1734979324508,8.55e-05,93432.0,93431.0,1.11183856]
[1734979325271,8.55e-05,93432.0,93431.0,0.98983856]
[1734979325479,8.55e-05,93432.0,93431.0,0.67415674]
[1734979326467,8.55e-05,93432.0,93431.0,0.31904732]
[1734979327096,8.55e-05,93432.0,93431.0,0.001]
[1734979327297,0.02149955,93432.0,93431.0,0.001]
[1734979327469,0.02149955,93432.0,93424.0,0.19224289]
[1734979327470,0.25289955,93432.0,93425.0,0.02312144]
[1734979327987,0.2314855,93432.0,93425.0,0.02312144]
[1734979328335,0.2314855,93432.0,93431.0,0.001]
[1734979328532,0.0814855,93432.0,93431.0,0.001]
[1734979328831,0.0814855,93432.0,93399.0,0.14418216]